[Event "Early-Titled-Tuesday-Blitz-March-12-2024"]
[Site "Chess.com"]
[Date "2024.03.12"]
[Round "3"]
[White "Triumphmate"]
[Black "martinmena"]
[Result "1-0"]
[WhiteElo "2515"]
[BlackElo "2275"]
[TimeControl "180+1"]
[EndTime "8:29:03 PDT"]
[Termination "Triumphmate won by resignation"]

1. e4 {[%clk 0:03:00.9]} 1... c6 {[%clk 0:03:00.1]} 2. d4 {[%clk 0:02:54.9]}
2... d5 {[%clk 0:03:01]} 3. exd5 {[%clk 0:02:55.8]} 3... cxd5 {[%clk 0:03:01.3]}
4. c3 {[%clk 0:02:55.8]} 4... Nc6 {[%clk 0:03:00.6]} 5. Bd3 {[%clk 0:02:56.3]}
5... Qc7 {[%clk 0:03:01]} 6. h3 {[%clk 0:02:56]} 6... g6 {[%clk 0:03:00.7]} 7.
Nf3 {[%clk 0:02:56]} 7... Bf5 {[%clk 0:03:01.1]} 8. Bxf5 {[%clk 0:02:55.7]} 8...
gxf5 {[%clk 0:03:02]} 9. O-O {[%clk 0:02:56.1]} 9... Nf6 {[%clk 0:03:02.2]} 10.
Re1 {[%clk 0:02:53.6]} 10... e6 {[%clk 0:03:02.2]} 11. Ne5 {[%clk 0:02:53.6]}
11... Nxe5 {[%clk 0:02:57.5]} 12. dxe5 {[%clk 0:02:52.6]} 12... Ne4 {[%clk
0:02:56.9]} 13. Nd2 {[%clk 0:02:44.9]} 13... O-O-O {[%clk 0:02:37.3]} 14. Nxe4
{[%clk 0:02:43.4]} 14... dxe4 {[%clk 0:02:38.2]} 15. Qa4 {[%clk 0:02:42.5]}
15... Bc5 {[%clk 0:02:21.7]} 16. b4 {[%clk 0:02:33.1]} 16... Bb6 {[%clk
0:02:19.8]} 17. c4 {[%clk 0:02:31.3]} 17... Bd4 {[%clk 0:02:14.6]} 18. Rb1
{[%clk 0:02:25.4]} 18... Qxe5 {[%clk 0:02:04.1]} 19. Be3 {[%clk 0:02:21.1]}
19... Kb8 {[%clk 0:01:54]} 20. c5 {[%clk 0:02:13]} 20... Bxe3 {[%clk 0:01:47.3]}
21. Rxe3 {[%clk 0:02:13.2]} 21... f4 {[%clk 0:01:43]} 22. Ra3 {[%clk 0:02:12.1]}
22... a6 {[%clk 0:01:18.9]} 23. b5 {[%clk 0:01:57.9]} 23... Rhg8 {[%clk
0:00:39.1]} 24. bxa6 {[%clk 0:01:52.4]} 24... f3 {[%clk 0:00:38.9]} 25. g4
{[%clk 0:01:12]} 25... Qf4 {[%clk 0:00:11.8]} 26. Rxb7+ {[%clk 0:00:33]} 26...
Ka8 {[%clk 0:00:11.2]} 27. Rb8+ {[%clk 0:00:13.6]} 27... Qxb8 {[%clk 0:00:10.6]}
28. Qxe4+ {[%clk 0:00:10.8]} 28... Ka7 {[%clk 0:00:09.7]} 29. Rxf3 {[%clk
0:00:10.6]} 29... Rd1+ {[%clk 0:00:09.8]} 30. Kg2 {[%clk 0:00:10.4]} 30... Rf8
{[%clk 0:00:01.9]} 31. c6 {[%clk 0:00:10.5]} 31... Qc7 {[%clk 0:00:01.8]} 32.
Rb3 {[%clk 0:00:08.9]} 32... Rb8 {[%clk 0:00:01.8]} 33. Qe3+ {[%clk 0:00:06.4]}
33... Rd4 {[%clk 0:00:01.9]} 34. Qxd4+ {[%clk 0:00:06.2]} 34... Rb6 {[%clk
0:00:02.8]} 35. Rxb6 {[%clk 0:00:05.8]} 35... Qxb6 {[%clk 0:00:03.7]} 36. Qd7+
{[%clk 0:00:03.7]} 36... Kxa6 {[%clk 0:00:03.6]} 37. c7 {[%clk 0:00:04.2]} 37...
Qb7+ {[%clk 0:00:03.8]} 38. Kh2 {[%clk 0:00:04.8]} 38... Qf3 {[%clk 0:00:02.5]}
39. c8=Q+ {[%clk 0:00:03.5]} 39... Ka5 {[%clk 0:00:03.4]} 40. Qdc7+ {[%clk
0:00:03.8]} 40... Kb4 {[%clk 0:00:03.7]} 41. Qc4+ {[%clk 0:00:04.2]} 41... Ka3
{[%clk 0:00:03.9]} 42. Qb3+ {[%clk 0:00:04.8]} 42... Qxb3 {[%clk 0:00:03.2]} 43.
axb3 {[%clk 0:00:05.7]} 43... Kxb3 {[%clk 0:00:04.1]} 44. Qb7+ {[%clk
0:00:03.9]} 44... Kc3 {[%clk 0:00:04]} 45. Qxf7 {[%clk 0:00:04.8]} 45... Kd2
{[%clk 0:00:04.8]} 46. Qxe6 {[%clk 0:00:05.3]} 46... h6 {[%clk 0:00:05.7]} 47.
f4 {[%clk 0:00:05.8]} 47... Kc2 {[%clk 0:00:06.5]} 48. g5 {[%clk 0:00:06.6]}
48... Kd1 {[%clk 0:00:06.7]} 49. gxh6 {[%clk 0:00:07.5]} 49... Kd2 {[%clk
0:00:07.3]} 50. h7 {[%clk 0:00:08.4]} 50... Kd1 {[%clk 0:00:07.6]} 51. f5 {[%clk
0:00:09.3]} 51... Kc2 {[%clk 0:00:08.5]} 52. f6 {[%clk 0:00:10.2]} 52... Kc3
{[%clk 0:00:09.4]} 53. f7 {[%clk 0:00:11.1]} 53... Kc2 {[%clk 0:00:10.3]} 54. h4
{[%clk 0:00:12]} 54... Kc3 {[%clk 0:00:11.2]} 55. h5 {[%clk 0:00:12.3]} 55...
Kc2 {[%clk 0:00:12.1]} 56. h6 {[%clk 0:00:12.9]} 56... Kc3 {[%clk 0:00:13]} 57.
h8=Q+ {[%clk 0:00:13.4]} 57... Kc2 {[%clk 0:00:13.9]} 58. Qg8 {[%clk 0:00:14.3]}
58... Kc3 {[%clk 0:00:14.8]} 59. h7 {[%clk 0:00:15.1]} 59... Kc2 {[%clk
0:00:15.7]} 60. f8=Q {[%clk 0:00:15.8]} 60... Kc3 {[%clk 0:00:16.6]} 61. h8=Q+
{[%clk 0:00:16.1]} 61... Kc2 {[%clk 0:00:17.5]} 62. Qee8 {[%clk 0:00:15.9]} 1-0

[Event "Early-Titled-Tuesday-Blitz-March-12-2024"]
[Site "Chess.com"]
[Date "2024.03.12"]
[Round "3"]
[White "killer_dreams"]
[Black "chito89"]
[Result "0-1"]
[WhiteElo "2526"]
[BlackElo "2838"]
[TimeControl "180+1"]
[EndTime "8:29:11 PDT"]
[Termination "chito89 won by resignation"]

1. e4 {[%clk 0:03:00.9]} 1... e5 {[%clk 0:02:53.1]} 2. Nf3 {[%clk 0:03:00.7]}
2... Nf6 {[%clk 0:02:51.9]} 3. Nxe5 {[%clk 0:02:58.2]} 3... d6 {[%clk
0:02:51.3]} 4. Nd3 {[%clk 0:02:57.6]} 4... Nxe4 {[%clk 0:02:51.4]} 5. Qe2 {[%clk
0:02:52.9]} 5... Qe7 {[%clk 0:02:50.5]} 6. Nf4 {[%clk 0:02:53.6]} 6... c6 {[%clk
0:02:48.5]} 7. d4 {[%clk 0:02:38]} 7... Bf5 {[%clk 0:02:29.6]} 8. c3 {[%clk
0:02:20.3]} 8... d5 {[%clk 0:01:52.8]} 9. f3 {[%clk 0:02:16.7]} 9... Nd6 {[%clk
0:01:45.2]} 10. h4 {[%clk 0:02:06]} 10... Nd7 {[%clk 0:01:38.4]} 11. g4 {[%clk
0:02:03.2]} 11... Bxb1 {[%clk 0:01:37.9]} 12. Rxb1 {[%clk 0:02:02.7]} 12...
O-O-O {[%clk 0:01:37.4]} 13. Qxe7 {[%clk 0:02:00.2]} 13... Bxe7 {[%clk
0:01:38.3]} 14. Bd3 {[%clk 0:01:59.4]} 14... g6 {[%clk 0:01:32.7]} 15. Kf2
{[%clk 0:01:51.9]} 15... Nf8 {[%clk 0:01:25.4]} 16. Bd2 {[%clk 0:01:46.9]} 16...
Ne6 {[%clk 0:01:24]} 17. Rbe1 {[%clk 0:01:41.4]} 17... Kd7 {[%clk 0:01:24.2]}
18. Nxe6 {[%clk 0:01:26.1]} 18... fxe6 {[%clk 0:01:25.1]} 19. Kg3 {[%clk
0:01:23.9]} 19... Nf7 {[%clk 0:01:21.5]} 20. Re2 {[%clk 0:01:16.2]} 20... Bd6+
{[%clk 0:01:20]} 21. f4 {[%clk 0:01:15.2]} 21... Rhg8 {[%clk 0:01:13.8]} 22.
Rhe1 {[%clk 0:01:11.7]} 22... Rde8 {[%clk 0:01:13.9]} 23. Kg2 {[%clk 0:01:07.8]}
23... h5 {[%clk 0:01:08.2]} 24. g5 {[%clk 0:01:07.6]} 24... Nd8 {[%clk
0:01:03.6]} 25. Kg3 {[%clk 0:01:04.4]} 25... Ref8 {[%clk 0:01:04]} 26. c4 {[%clk
0:00:47.5]} 26... Rg7 {[%clk 0:01:04.1]} 27. c5 {[%clk 0:00:43.1]} 27... Bc7
{[%clk 0:01:03.9]} 28. b4 {[%clk 0:00:43.1]} 28... b6 {[%clk 0:00:50.9]} 29. b5
{[%clk 0:00:35.1]} 29... bxc5 {[%clk 0:00:45.4]} 30. dxc5 {[%clk 0:00:36]} 30...
Rgf7 {[%clk 0:00:44.2]} 31. Rf1 {[%clk 0:00:23.8]} 31... Rg8 {[%clk 0:00:29.3]}
32. Bc3 {[%clk 0:00:22.1]} 32... Rgf8 {[%clk 0:00:25]} 33. Be5 {[%clk
0:00:15.5]} 33... Bxe5 {[%clk 0:00:22.6]} 34. Rxe5 {[%clk 0:00:16.4]} 34... Rg7
{[%clk 0:00:17.1]} 35. a4 {[%clk 0:00:17]} 35... Kc7 {[%clk 0:00:16.5]} 36. Rfe1
{[%clk 0:00:15.8]} 36... Nb7 {[%clk 0:00:15.5]} 37. Rxe6 {[%clk 0:00:14.6]}
37... cxb5 {[%clk 0:00:15.9]} 38. axb5 {[%clk 0:00:14.5]} 38... Kb8 {[%clk
0:00:15.6]} 39. c6 {[%clk 0:00:14.6]} 39... Nc5 {[%clk 0:00:15.6]} 40. Re8+
{[%clk 0:00:14.9]} 40... Rxe8 {[%clk 0:00:15.8]} 41. Rxe8+ {[%clk 0:00:15.6]}
41... Kc7 {[%clk 0:00:16.6]} 42. Bc2 {[%clk 0:00:13.3]} 42... d4 {[%clk
0:00:17.2]} 43. Re5 {[%clk 0:00:08.7]} 43... Kb6 {[%clk 0:00:17.5]} 44. Rd5
{[%clk 0:00:08.4]} 44... Kxb5 {[%clk 0:00:16.2]} 45. Rxd4 {[%clk 0:00:08.2]}
45... Kxc6 {[%clk 0:00:16.8]} 46. Rd8 {[%clk 0:00:07.3]} 46... a5 {[%clk
0:00:12]} 47. Ra8 {[%clk 0:00:06.6]} 47... Kb6 {[%clk 0:00:12.2]} 48. Rf8 {[%clk
0:00:06.4]} 48... a4 {[%clk 0:00:11.4]} 49. Rf6+ {[%clk 0:00:06.8]} 49... Kb5
{[%clk 0:00:11.8]} 50. Bxg6 {[%clk 0:00:07.5]} 50... a3 {[%clk 0:00:11.3]} 51.
Bb1 {[%clk 0:00:05.9]} 51... Rd7 {[%clk 0:00:09.8]} 52. Ba2 {[%clk 0:00:05.5]}
52... Rd2 {[%clk 0:00:09.2]} 53. Bf7 {[%clk 0:00:05.6]} 53... Rd3+ {[%clk
0:00:07.8]} 54. Kf2 {[%clk 0:00:05.9]} 54... Ne4+ {[%clk 0:00:08]} 55. Ke2
{[%clk 0:00:06.6]} 55... Rd2+ {[%clk 0:00:03.9]} 56. Ke3 {[%clk 0:00:06.7]}
56... Nxf6 {[%clk 0:00:02.4]} 57. gxf6 {[%clk 0:00:07.6]} 57... Rd6 {[%clk
0:00:02]} 58. Bxh5 {[%clk 0:00:06.5]} 58... a2 {[%clk 0:00:01.3]} 59. Be2+
{[%clk 0:00:05.8]} 59... Kb4 {[%clk 0:00:01]} 60. f7 {[%clk 0:00:06.3]} 60...
Rf6 {[%clk 0:00:01.6]} 61. Ke4 {[%clk 0:00:05.8]} 61... a1=Q {[%clk 0:00:02.1]}
0-1

[Event "Early-Titled-Tuesday-Blitz-March-12-2024"]
[Site "Chess.com"]
[Date "2024.03.12"]
[Round "3"]
[White "SuperPower2011"]
[Black "wonderfultime"]
[Result "0-1"]
[WhiteElo "2811"]
[BlackElo "3063"]
[TimeControl "180+1"]
[EndTime "8:29:21 PDT"]
[Termination "wonderfultime won by resignation"]

1. d4 {[%clk 0:03:00.9]} 1... d5 {[%clk 0:02:55.5]} 2. c4 {[%clk 0:02:58.3]}
2... c6 {[%clk 0:02:55.5]} 3. cxd5 {[%clk 0:02:55.4]} 3... cxd5 {[%clk
0:02:55.4]} 4. Nc3 {[%clk 0:02:56.2]} 4... Nf6 {[%clk 0:02:55.9]} 5. Bf4 {[%clk
0:02:56.4]} 5... Nc6 {[%clk 0:02:55.6]} 6. e3 {[%clk 0:02:57]} 6... a6 {[%clk
0:02:56.2]} 7. Rc1 {[%clk 0:02:56.1]} 7... Bg4 {[%clk 0:02:55.5]} 8. f3 {[%clk
0:02:55.8]} 8... Bd7 {[%clk 0:02:53.5]} 9. g4 {[%clk 0:02:54.3]} 9... e6 {[%clk
0:02:51.9]} 10. Bd3 {[%clk 0:02:54.3]} 10... Rc8 {[%clk 0:02:45.2]} 11. Nge2
{[%clk 0:02:51.9]} 11... Na5 {[%clk 0:02:45.4]} 12. h4 {[%clk 0:02:31.5]} 12...
Nc4 {[%clk 0:02:32.1]} 13. Qc2 {[%clk 0:02:19.8]} 13... Qb6 {[%clk 0:02:13.6]}
14. b3 {[%clk 0:02:18.9]} 14... Na3 {[%clk 0:02:08.6]} 15. Qd2 {[%clk
0:02:18.7]} 15... Bb4 {[%clk 0:02:09.1]} 16. Kf2 {[%clk 0:02:18.3]} 16... Qa5
{[%clk 0:02:04.5]} 17. Qb2 {[%clk 0:02:08.4]} 17... Bc6 {[%clk 0:01:51.3]} 18.
h5 {[%clk 0:01:36.2]} 18... Nd7 {[%clk 0:01:49.9]} 19. g5 {[%clk 0:01:25.7]}
19... O-O {[%clk 0:01:26.7]} 20. Rcg1 {[%clk 0:00:59.7]} 20... Bb5 {[%clk
0:00:37.8]} 21. Nxb5 {[%clk 0:00:57]} 21... axb5 {[%clk 0:00:36.1]} 22. Rg2
{[%clk 0:00:51.2]} 22... Kh8 {[%clk 0:00:29.4]} 23. Qa1 {[%clk 0:00:38.1]} 23...
Nc2 {[%clk 0:00:26.4]} 24. Qg1 {[%clk 0:00:36.3]} 24... Be1+ {[%clk 0:00:25.8]}
25. Kf1 {[%clk 0:00:33.8]} 25... Qd2 {[%clk 0:00:26.2]} 26. Bxc2 {[%clk
0:00:24.7]} 26... Rxc2 {[%clk 0:00:27.1]} 27. g6 {[%clk 0:00:23.7]} 27... Qd1
{[%clk 0:00:24.4]} 28. Rgh2 {[%clk 0:00:14.3]} 28... Bb4+ {[%clk 0:00:14.7]} 29.
Kf2 {[%clk 0:00:07.1]} 29... Rxe2+ {[%clk 0:00:15.4]} 30. Kg3 {[%clk 0:00:07.6]}
30... Qxg1+ {[%clk 0:00:15.5]} 31. Rxg1 {[%clk 0:00:08.5]} 31... Rxh2 {[%clk
0:00:16.1]} 32. Kxh2 {[%clk 0:00:08.6]} 32... fxg6 {[%clk 0:00:15.6]} 33. hxg6
{[%clk 0:00:09.5]} 33... hxg6 {[%clk 0:00:16.2]} 34. Rxg6 {[%clk 0:00:09.9]}
34... Nf6 {[%clk 0:00:15.7]} 35. Kg2 {[%clk 0:00:09]} 35... Rc8 {[%clk
0:00:15.4]} 36. Be5 {[%clk 0:00:08.9]} 36... Be7 {[%clk 0:00:15.7]} 37. Kh3
{[%clk 0:00:06.2]} 37... Kg8 {[%clk 0:00:16]} 38. Rg2 {[%clk 0:00:06]} 38... Kf7
{[%clk 0:00:16.5]} 39. Re2 {[%clk 0:00:05.4]} 39... Nd7 {[%clk 0:00:16.7]} 40.
Bg3 {[%clk 0:00:05.1]} 40... Rc3 {[%clk 0:00:16.4]} 41. Kg2 {[%clk 0:00:05.4]}
41... b4 {[%clk 0:00:13.9]} 42. Be1 {[%clk 0:00:05.3]} 42... Rc1 {[%clk
0:00:14.2]} 43. Kf2 {[%clk 0:00:05.5]} 43... e5 {[%clk 0:00:14]} 44. Kg2 {[%clk
0:00:03.5]} 44... exd4 {[%clk 0:00:14]} 45. exd4 {[%clk 0:00:04.4]} 45... Bd6
{[%clk 0:00:14.1]} 46. Bd2 {[%clk 0:00:04.5]} 46... Rc2 {[%clk 0:00:14.2]} 47.
Kf2 {[%clk 0:00:04.3]} 47... Nf8 {[%clk 0:00:14.5]} 48. Be1 {[%clk 0:00:01.7]}
48... Rxe2+ {[%clk 0:00:14.5]} 49. Kxe2 {[%clk 0:00:02.6]} 49... Ne6 {[%clk
0:00:15.4]} 50. Kd3 {[%clk 0:00:03.5]} 50... Kg6 {[%clk 0:00:15.9]} 51. Bd2
{[%clk 0:00:03.2]} 51... Kf5 {[%clk 0:00:16.3]} 52. Be3 {[%clk 0:00:02.6]} 52...
Bf4 {[%clk 0:00:16]} 53. Bf2 {[%clk 0:00:02.6]} 53... g5 {[%clk 0:00:16.5]} 54.
Be1 {[%clk 0:00:03.1]} 54... Bd6 {[%clk 0:00:17.2]} 55. Bf2 {[%clk 0:00:03.7]}
55... Nf4+ {[%clk 0:00:16.9]} 56. Kd2 {[%clk 0:00:03.8]} 56... Ng2 {[%clk
0:00:17.1]} 57. Kd3 {[%clk 0:00:03.8]} 57... Nf4+ {[%clk 0:00:13.4]} 58. Kd2
{[%clk 0:00:03.9]} 58... Ne6 {[%clk 0:00:14.3]} 59. Kd3 {[%clk 0:00:03.6]} 59...
Bc7 {[%clk 0:00:13.3]} 60. Kd2 {[%clk 0:00:03]} 60... Bb6 {[%clk 0:00:13.9]} 61.
Kd3 {[%clk 0:00:02.6]} 61... Kf4 {[%clk 0:00:14.6]} 62. Be1 {[%clk 0:00:01.1]}
62... Kxf3 {[%clk 0:00:14.4]} 63. Bxb4 {[%clk 0:00:01.5]} 63... g4 {[%clk
0:00:15.1]} 64. Be1 {[%clk 0:00:01.2]} 64... Bxd4 {[%clk 0:00:15.4]} 65. Kd2
{[%clk 0:00:01.2]} 65... Bf2 {[%clk 0:00:15.3]} 66. Kd3 {[%clk 0:00:02.1]} 66...
g3 {[%clk 0:00:15.6]} 0-1

[Event "Early-Titled-Tuesday-Blitz-March-12-2024"]
[Site "Chess.com"]
[Date "2024.03.12"]
[Round "3"]
[White "vi_pranav"]
[Black "eagleclaw07"]
[Result "1-0"]
[WhiteElo "3039"]
[BlackElo "2787"]
[TimeControl "180+1"]
[EndTime "8:29:21 PDT"]
[Termination "vi_pranav won by resignation"]

1. e4 {[%clk 0:03:00.9]} 1... c5 {[%clk 0:02:59.2]} 2. Nf3 {[%clk 0:03:00.8]}
2... d6 {[%clk 0:02:59.6]} 3. d4 {[%clk 0:03:00.4]} 3... cxd4 {[%clk 0:03:00.5]}
4. Nxd4 {[%clk 0:03:01.3]} 4... Nf6 {[%clk 0:03:01.2]} 5. Nc3 {[%clk 0:03:02]}
5... a6 {[%clk 0:03:01.8]} 6. h3 {[%clk 0:03:02.4]} 6... e5 {[%clk 0:03:00.9]}
7. Nf3 {[%clk 0:03:02.8]} 7... Be7 {[%clk 0:03:00.6]} 8. g4 {[%clk 0:03:02.7]}
8... h6 {[%clk 0:03:00.1]} 9. Rg1 {[%clk 0:03:01.1]} 9... Nc6 {[%clk 0:02:59.3]}
10. Bc4 {[%clk 0:02:59.3]} 10... b5 {[%clk 0:02:57.1]} 11. Bb3 {[%clk
0:02:58.9]} 11... Na5 {[%clk 0:02:54.4]} 12. g5 {[%clk 0:02:37]} 12... hxg5
{[%clk 0:02:53.1]} 13. Nxg5 {[%clk 0:02:37.9]} 13... Nxb3 {[%clk 0:02:53.1]} 14.
axb3 {[%clk 0:02:38.8]} 14... Bb7 {[%clk 0:02:42.8]} 15. Qf3 {[%clk 0:02:01.3]}
15... Qc8 {[%clk 0:02:27.4]} 16. Bd2 {[%clk 0:01:25.3]} 16... b4 {[%clk
0:02:21.5]} 17. Na4 {[%clk 0:01:24.8]} 17... Qc6 {[%clk 0:01:57.3]} 18. Bxb4
{[%clk 0:01:19.1]} 18... Qxc2 {[%clk 0:01:46.2]} 19. Nc3 {[%clk 0:00:54.7]}
19... Qxb3 {[%clk 0:01:36.2]} 20. Ba3 {[%clk 0:00:53.7]} 20... Rc8 {[%clk
0:01:21.1]} 21. Rd1 {[%clk 0:00:50.5]} 21... Rh4 {[%clk 0:01:12.9]} 22. Rg3
{[%clk 0:00:41.7]} 22... Rf4 {[%clk 0:01:09.8]} 23. Qe2 {[%clk 0:00:38]} 23...
Qb6 {[%clk 0:00:57.8]} 24. Rf3 {[%clk 0:00:31.2]} 24... Rh4 {[%clk 0:00:51.4]}
25. Kf1 {[%clk 0:00:19.1]} 25... Kf8 {[%clk 0:00:46.4]} 26. Kg1 {[%clk
0:00:18.7]} 26... Kg8 {[%clk 0:00:46.6]} 27. Rfd3 {[%clk 0:00:13.6]} 27... Nh5
{[%clk 0:00:41.4]} 28. Rxd6 {[%clk 0:00:06.2]} 28... Bxd6 {[%clk 0:00:37.9]} 29.
Rxd6 {[%clk 0:00:07.1]} 29... Qc7 {[%clk 0:00:31.9]} 30. Qf3 {[%clk 0:00:07.3]}
30... Nf4 {[%clk 0:00:30.7]} 31. Qg3 {[%clk 0:00:06.6]} 31... Rh5 {[%clk
0:00:16.2]} 32. h4 {[%clk 0:00:06.3]} 32... Rd8 {[%clk 0:00:13.4]} 33. Rxd8+
{[%clk 0:00:03.4]} 33... Qxd8 {[%clk 0:00:14.3]} 34. Qg4 {[%clk 0:00:03.9]}
34... Bc8 {[%clk 0:00:09.9]} 35. Qg3 {[%clk 0:00:02.5]} 35... Qd2 {[%clk
0:00:08.7]} 36. Nf3 {[%clk 0:00:02]} 36... Qc1+ {[%clk 0:00:07.4]} 37. Kh2
{[%clk 0:00:02.6]} 37... Qf1 {[%clk 0:00:06.3]} 38. Be7 {[%clk 0:00:02.5]} 38...
Qh3+ {[%clk 0:00:05.6]} 39. Qxh3 {[%clk 0:00:02.8]} 39... Bxh3 {[%clk
0:00:06.5]} 40. Nd5 {[%clk 0:00:02.2]} 40... Nxd5 {[%clk 0:00:06.2]} 41. exd5
{[%clk 0:00:03.1]} 41... Bg4 {[%clk 0:00:06]} 42. d6 {[%clk 0:00:03.5]} 42... e4
{[%clk 0:00:04.2]} 43. Nd2 {[%clk 0:00:01.7]} 43... Rd5 {[%clk 0:00:03]} 44.
Nxe4 {[%clk 0:00:02.2]} 44... f6 {[%clk 0:00:03.4]} 45. Kg3 {[%clk 0:00:02.4]}
45... Bf5 {[%clk 0:00:03.4]} 46. Nc3 {[%clk 0:00:02]} 46... Rd4 {[%clk
0:00:04.1]} 47. f3 {[%clk 0:00:02]} 47... Kf7 {[%clk 0:00:04.5]} 48. Ne2 {[%clk
0:00:02.4]} 48... Rd3 {[%clk 0:00:03.7]} 49. Nc3 {[%clk 0:00:02.1]} 49... Be6
{[%clk 0:00:03.7]} 50. Kf2 {[%clk 0:00:02]} 50... Rd2+ {[%clk 0:00:04.2]} 51.
Ke3 {[%clk 0:00:02.6]} 51... Rxb2 {[%clk 0:00:05.1]} 52. Ne4 {[%clk 0:00:03.2]}
52... Rb3+ {[%clk 0:00:05.3]} 53. Kf4 {[%clk 0:00:03.5]} 53... Rd3 {[%clk
0:00:05.5]} 54. Nc5 {[%clk 0:00:03.6]} 54... Rd5 {[%clk 0:00:05.6]} 55. Nb7
{[%clk 0:00:03.2]} 55... a5 {[%clk 0:00:05.4]} 56. Nd8+ {[%clk 0:00:03.5]} 56...
Ke8 {[%clk 0:00:03.9]} 57. Nxe6 {[%clk 0:00:04.4]} 57... a4 {[%clk 0:00:04]} 58.
Nc7+ {[%clk 0:00:04.6]} 58... Kd7 {[%clk 0:00:04.7]} 59. Nxd5 {[%clk 0:00:05.5]}
59... a3 {[%clk 0:00:05.6]} 60. Nc3 {[%clk 0:00:06.1]} 60... a2 {[%clk
0:00:06.5]} 61. Nxa2 {[%clk 0:00:06.7]} 1-0

[Event "Early-Titled-Tuesday-Blitz-March-12-2024"]
[Site "Chess.com"]
[Date "2024.03.12"]
[Round "3"]
[White "BilicVladimir"]
[Black "Valio_M1948"]
[Result "1-0"]
[WhiteElo "2663"]
[BlackElo "2410"]
[TimeControl "180+1"]
[EndTime "8:29:24 PDT"]
[Termination "BilicVladimir won on time"]

1. e4 {[%clk 0:03:00.9]} 1... e5 {[%clk 0:03:00.3]} 2. Nf3 {[%clk 0:03:00.8]}
2... d5 {[%clk 0:03:00.9]} 3. exd5 {[%clk 0:03:00.2]} 3... e4 {[%clk 0:03:00.2]}
4. Qe2 {[%clk 0:03:00.4]} 4... Nf6 {[%clk 0:02:59.2]} 5. d3 {[%clk 0:02:59.9]}
5... Qxd5 {[%clk 0:02:59.3]} 6. dxe4 {[%clk 0:02:56.7]} 6... Qxe4 {[%clk
0:02:57.9]} 7. Nbd2 {[%clk 0:02:52.7]} 7... Qxe2+ {[%clk 0:02:48.9]} 8. Bxe2
{[%clk 0:02:53.6]} 8... Nc6 {[%clk 0:02:49.3]} 9. O-O {[%clk 0:02:51.5]} 9...
Bf5 {[%clk 0:02:40.1]} 10. c3 {[%clk 0:02:51.7]} 10... O-O-O {[%clk 0:02:37.9]}
11. Nb3 {[%clk 0:02:51.8]} 11... Ne4 {[%clk 0:02:28.7]} 12. Nbd4 {[%clk
0:02:47.9]} 12... Nxd4 {[%clk 0:02:27.9]} 13. Nxd4 {[%clk 0:02:47.8]} 13... Bd7
{[%clk 0:02:20.9]} 14. Be3 {[%clk 0:02:44.5]} 14... Be7 {[%clk 0:02:07.3]} 15.
Rad1 {[%clk 0:02:43.7]} 15... a6 {[%clk 0:02:00.4]} 16. Bf3 {[%clk 0:02:43.1]}
16... Ng5 {[%clk 0:01:58.5]} 17. Be2 {[%clk 0:02:38.5]} 17... Rhe8 {[%clk
0:01:57.3]} 18. Rfe1 {[%clk 0:02:37.6]} 18... Ba4 {[%clk 0:01:41.2]} 19. b3
{[%clk 0:02:35.9]} 19... Bd7 {[%clk 0:01:40.7]} 20. h4 {[%clk 0:02:33.3]} 20...
Ne4 {[%clk 0:01:35.4]} 21. Rc1 {[%clk 0:02:22.1]} 21... Bxh4 {[%clk 0:01:32.7]}
22. Bc4 {[%clk 0:02:15.7]} 22... Nd6 {[%clk 0:01:27.7]} 23. Bd3 {[%clk
0:02:12.1]} 23... h6 {[%clk 0:01:18.2]} 24. g3 {[%clk 0:02:10.8]} 24... Bg5
{[%clk 0:01:17.2]} 25. Bxg5 {[%clk 0:02:08.5]} 25... hxg5 {[%clk 0:01:18.1]} 26.
Kg2 {[%clk 0:02:04.8]} 26... c5 {[%clk 0:01:15.3]} 27. Nc2 {[%clk 0:02:00.8]}
27... Bc6+ {[%clk 0:01:14.8]} 28. Kg1 {[%clk 0:01:59.9]} 28... Be4 {[%clk
0:01:13]} 29. Bxe4 {[%clk 0:01:58.3]} 29... Nxe4 {[%clk 0:01:13.9]} 30. Ne3
{[%clk 0:01:56.6]} 30... Re6 {[%clk 0:01:05.5]} 31. Rc2 {[%clk 0:01:51.6]} 31...
Rd3 {[%clk 0:00:54.7]} 32. c4 {[%clk 0:01:50]} 32... Nxg3 {[%clk 0:00:53.2]} 33.
Rec1 {[%clk 0:01:35.5]} 33... Nh5 {[%clk 0:00:47]} 34. Rc3 {[%clk 0:01:30]}
34... Rxc3 {[%clk 0:00:42.6]} 35. Rxc3 {[%clk 0:01:30]} 35... Nf4 {[%clk
0:00:43.4]} 36. Rc2 {[%clk 0:01:29.1]} 36... Rd6 {[%clk 0:00:43.5]} 37. Kh2
{[%clk 0:01:27.5]} 37... g6 {[%clk 0:00:42.4]} 38. Kg3 {[%clk 0:01:24.6]} 38...
f5 {[%clk 0:00:42.5]} 39. Kf3 {[%clk 0:01:25.1]} 39... Nd3 {[%clk 0:00:39.1]}
40. Ke2 {[%clk 0:01:20.3]} 40... Nb4 {[%clk 0:00:38.5]} 41. Rb2 {[%clk
0:01:19.5]} 41... Re6 {[%clk 0:00:38.5]} 42. a3 {[%clk 0:01:18.6]} 42... Nc6
{[%clk 0:00:37.4]} 43. Kf1 {[%clk 0:01:16.5]} 43... g4 {[%clk 0:00:31.8]} 44.
Nd5 {[%clk 0:01:16.2]} 44... Ne7 {[%clk 0:00:31.3]} 45. Nf4 {[%clk 0:01:15.1]}
45... Rd6 {[%clk 0:00:31.4]} 46. Re2 {[%clk 0:01:14.2]} 46... Kd7 {[%clk
0:00:32.1]} 47. b4 {[%clk 0:01:12.5]} 47... b6 {[%clk 0:00:27.4]} 48. bxc5
{[%clk 0:01:11.7]} 48... bxc5 {[%clk 0:00:28.3]} 49. Rb2 {[%clk 0:01:11.4]}
49... g5 {[%clk 0:00:25]} 50. Nh5 {[%clk 0:01:07]} 50... Kc7 {[%clk 0:00:21.2]}
51. Ng7 {[%clk 0:01:05.1]} 51... Rd3 {[%clk 0:00:18.9]} 52. Ne6+ {[%clk
0:01:03.1]} 52... Kc6 {[%clk 0:00:16.9]} 53. a4 {[%clk 0:01:00.3]} 53... Ra3
{[%clk 0:00:10.5]} 54. Nxg5 {[%clk 0:00:55.6]} 54... Rxa4 {[%clk 0:00:10.6]} 55.
Nf7 {[%clk 0:00:56.5]} 55... Ng6 {[%clk 0:00:08.9]} 56. Re2 {[%clk 0:00:49.6]}
56... Kd7 {[%clk 0:00:09.3]} 57. Rd2+ {[%clk 0:00:47.4]} 57... Ke7 {[%clk
0:00:06.7]} 58. Nd6 {[%clk 0:00:46.9]} 58... f4 {[%clk 0:00:05.2]} 59. Nf5+
{[%clk 0:00:43.2]} 59... Kf6 {[%clk 0:00:03.8]} 60. Nd6 {[%clk 0:00:43.5]} 60...
f3 {[%clk 0:00:03.6]} 61. Kg1 {[%clk 0:00:43.5]} 61... Ra1+ {[%clk 0:00:03.1]}
62. Kh2 {[%clk 0:00:43.7]} 62... Ne5 {[%clk 0:00:03.4]} 63. Kg3 {[%clk
0:00:40.8]} 63... Rc1 {[%clk 0:00:03.1]} 64. Ne4+ {[%clk 0:00:37.9]} 64... Kf5
{[%clk 0:00:03]} 65. Nxc5 {[%clk 0:00:35.1]} 65... Rxc4 {[%clk 0:00:03.7]} 66.
Nb3 {[%clk 0:00:33.1]} 66... Rb4 {[%clk 0:00:03.2]} 67. Nd4+ {[%clk 0:00:32.1]}
67... Ke4 {[%clk 0:00:03.8]} 68. Ne6 {[%clk 0:00:32.1]} 68... Rb1 {[%clk
0:00:04.4]} 69. Nc5+ {[%clk 0:00:29.4]} 69... Kf5 {[%clk 0:00:04.8]} 70. Rd5
{[%clk 0:00:29.4]} 70... Rg1+ {[%clk 0:00:04.5]} 71. Kh2 {[%clk 0:00:29.7]}
71... Rg2+ {[%clk 0:00:05]} 72. Kh1 {[%clk 0:00:30]} 72... Kf4 {[%clk
0:00:02.2]} 73. Rd4+ {[%clk 0:00:27.2]} 73... Kf5 {[%clk 0:00:01.1]} 74. Ne4
{[%clk 0:00:26.9]} 1-0